bitfinex-derivatives/quotes_ETHF0:USTF0_20250422
["timestamp","ask_amount","ask_price","bid_price","bid_amount"]
[1745364520681,4.34392,1759.8,1759.7,10.8492]
[1745364520893,4.34392,1759.8,1759.7,6.322]
[1745364521286,1.13622,1759.7,1759.5,1.13631]
[1745364521488,1.13622,1759.7,1759.6,4.5272]
[1745364521688,1.13638,1759.4,1759.3,3.2078]
[1745364521990,1.13636,1759.5,1759.3,1.13644]
[1745364522184,1.13636,1759.5,1759.4,4.5272]
[1745364522384,4.7401,1759.6,1759.4,4.5272]
[1745364522585,1.13612,1759.8,1759.6,1.13622]
[1745364522885,1.13612,1759.8,1759.7,4.5272]
[1745364523282,1.13597,1760.1,1759.7,7.735]
[1745364523482,7.7778,1760.2,1759.7,7.735]
[1745364523483,1.136,1760.0,1759.8,1.90845811]
[1745364523683,1.136,1760.0,1759.9,5.10373811]
[1745364523886,1.13596,1760.1,1759.9,5.10373811]
[1745364524092,5.56806,1760.1,1760.0,0.77233811]
[1745364524581,1.13596,1760.1,1760.0,5.10373811]
[1745364525191,5.56806,1760.1,1760.0,5.10373811]
[1745364525390,3.2162667,1760.2,1760.1,1.13593]
[1745364525590,5.91,1760.5,1760.1,0.77233811]
[1745364525786,3.2078,1760.7,1760.2,8.31153811]
[1745364525992,3.2078,1760.7,1760.3,1.90808811]
[1745364526301,7.95761,1760.9,1760.3,1.90808811]
[1745364526302,3.2078,1760.9,1760.6,3.2078]
[1745364526489,3.2078,1760.9,1760.7,5.07933811]
[1745364526691,4.7229,1761.1,1760.8,0.77233811]
[1745364526901,4.4645,1761.2,1760.9,5.07933811]
[1745364527195,4.4645,1761.2,1761.0,0.76889117]
[1745364527392,4.4645,1761.2,1761.1,0.76889117]
[1745364527597,8.80752,1761.2,1761.1,0.76889117]
[1745364527891,1.13535,1761.0,1760.9,0.00852394]
[1745364528087,1.13535,1761.0,1760.9,0.77645224]
[1745364528395,4.7229,1761.1,1760.9,0.77645224]
[1745364528598,5.8582,1761.1,1760.9,4.31552394]
[1745364528797,1.13535,1761.0,1760.9,4.31552394]
[1745364529095,5.85821,1761.1,1760.9,4.31552394]
[1745364529291,79.8189,1761.4,1760.9,4.31552394]
[1745364529496,84.4891,1761.4,1760.9,4.31552394]
[1745364529698,84.4891,1761.4,1761.0,1.13532]
[1745364529883,1.1352,1761.3,1761.1,5.79618]
[1745364530088,5.8054,1761.3,1761.2,4.6609]
[1745364530289,3.2078,1761.5,1761.2,4.6609]
[1745364530491,1.13516,1761.3,1761.2,4.6609]
[1745364530694,4.6702,1761.4,1761.2,4.6609]
[1745364530901,1.13522,1761.2,1761.0,1.13531]
[1745364531089,1.1352,1761.3,1761.0,5.79621]
[1745364531294,3.2078,1761.4,1761.0,7.8687]
[1745364531599,3.2078,1761.4,1761.0,4.6609]
[1745364531800,4.6702,1761.3,1761.0,4.6609]
[1745364531997,3.2078,1761.4,1761.0,4.6609]
[1745364532297,3.2078,1762.1,1761.6,1.13494]
[1745364532594,4.6246,1762.4,1762.2,1.13457]
[1745364532893,3.2078,1762.5,1762.0,3.2078]
[1745364533088,1.1346,1762.2,1762.1,0.00852394]
[1745364533285,1.13451,1762.3,1762.1,0.00852394]
[1745364533491,3.2078,1762.5,1762.1,6.02152394]
[1745364533686,1.1345,1762.4,1762.2,8.0862]
[1745364533886,1.13421,1762.8,1762.5,1.13436]
[1745364534085,3.2078,1763.0,1762.3,3.2078]
[1745364534291,4.7525,1762.9,1762.3,3.2078]
[1745364534498,4.7525,1762.9,1762.1,0.00852394]
[1745364534499,4.7525,1762.9,1762.5,3.2078]
[1745364534695,3.2078,1763.0,1762.6,4.8784]
[1745364534897,3.2078,1764.0,1763.0,2.83516]
[1745364535098,3.2078,1764.0,1763.4,3.2078]
[1745364535395,9.5298,1764.0,1763.7,3.2078]
[1745364535603,9.5298,1764.0,1763.5,4.71762394]
[1745364535796,1.13368,1763.6,1763.5,4.71762394]
[1745364536098,3.2078,1764.3,1763.5,11.03962394]
[1745364536300,3.2078,1764.3,1763.9,3.2078]
[1745364536498,1.13342,1764.0,1763.9,3.2078]
[1745364536696,1.13368,1763.6,1763.5,4.97745394]
[1745364536897,2.83484,1763.3,1762.5,3.2078]
[1745364537103,1.13425,1762.7,1762.6,3.2078]
[1745364537895,1.13423,1762.8,1762.6,3.2078]
[1745364538094,0.00852394,1762.8,1762.6,3.2078]
[1745364538297,0.00852394,1762.8,1762.5,4.71762394]
[1745364538489,0.00852394,1762.8,1762.5,7.92542394]
[1745364538694,1.14274394,1762.8,1762.5,7.92542394]
[1745364538895,0.00852394,1762.8,1762.5,9.05980394]
[1745364539093,0.00852394,1762.8,1762.5,15.38180394]
[1745364539301,0.00852394,1762.8,1762.5,15.38176394]
[1745364539504,1.14274394,1762.8,1762.5,14.24742394]
[1745364539796,0.00852394,1762.8,1762.7,4.34205]
[1745364540097,1.13419,1762.8,1762.7,3.2078]
[1745364540309,1.13432,1762.6,1762.5,7.92542394]
[1745364540499,1.13432,1762.6,1762.5,3.94e-06]
[1745364540704,9.34212,1762.6,1762.5,3.94e-06]
[1745364541202,15.65032981,1762.6,1762.5,3.94e-06]
[1745364541597,7.44252981,1762.6,1762.5,3.94e-06]
[1745364542395,1.12052981,1762.6,1762.5,3.94e-06]
[1745364542592,4.75412,1762.7,1762.5,3.94e-06]
[1745364542794,1.13432,1762.6,1762.5,3.94e-06]
[1745364542993,0.00852,1762.7,1762.5,4.34214394]
[1745364543300,0.00852,1762.7,1762.6,4.89]
[1745364543503,0.00852,1762.7,1762.6,6.77859404]
[1745364543697,0.00852,1762.7,1762.6,10.64394834]
[1745364543901,0.00852,1762.7,1762.6,5.64394834]
[1745364544101,1.14277,1762.7,1762.6,4.89]
[1745364544301,3.2078,1763.2,1762.6,10.64415589]
[1745364544501,9.3106,1763.6,1763.1,3.2078]
[1745364544696,9.3106,1763.6,1763.2,5.58642]
[1745364544896,3.2078,1763.8,1763.5,3.2078]
[1745364545099,4.6829,1764.0,1763.6,5.20562374]
[1745364545305,4.6829,1764.0,1763.6,4.4525]
[1745364545503,4.6829,1764.0,1763.6,4.46102394]
[1745364545708,1.13361,1763.7,1763.6,0.00852394]
[1745364545901,4.6829,1764.0,1763.2,3.2078]
[1745364545902,3.2078,1763.8,1763.2,3.2078]
[1745364546101,1.13406,1763.0,1762.9,4.4525]
[1745364546410,5.379,1763.3,1762.9,0.75515063]
[1745364546605,1.13413,1762.9,1762.7,7.6603]
[1745364546800,9.1178,1763.2,1762.5,3.2078]
[1745364546999,7.8907,1762.8,1762.3,3.2078]
[1745364547199,8.88472967,1762.7,1761.9,3.2078]
[1745364547504,1.13464,1762.1,1762.0,0.75650742]
[1745364548007,1.13464,1762.1,1761.9,3.2078]
[1745364548008,1.13471,1762.0,1761.9,3.2078]
[1745364548307,1.13483,1761.8,1761.7,3.2078]
[1745364548507,5.379,1761.9,1761.6,18.89701056]
[1745364548701,1.1349,1761.7,1761.6,18.9055345]
[1745364548904,1.1349,1761.7,1761.6,0.00852394]
[1745364549206,10.6787,1761.7,1761.6,0.00852394]
[1745364549402,13.8865,1761.7,1761.6,3.94e-06]
[1745364549809,13.98563535,1761.7,1761.6,3.94e-06]
[1745364550209,5.6787,1761.7,1761.6,3.94e-06]
[1745364550410,0.00852394,1761.9,1761.8,1.13483]
[1745364550608,4.6125,1762.4,1761.8,3.96922594]
[1745364550913,1.13459,1762.2,1762.0,3.2078]
[1745364551102,1.13459,1762.2,1762.1,0.76156878]
[1745364551713,6.13459,1762.2,1762.1,0.74452878]
[1745364551912,6.13459,1762.2,1762.1,8.78e-06]
[1745364552107,17.06909,1762.2,1762.1,8.78e-06]
[1745364552504,1.1349,1761.7,1761.6,3.94e-06]
[1745364552913,4.6125,1761.9,1761.6,3.94e-06]
[1745364553112,5.74731,1761.9,1761.7,3.2078]
[1745364553305,4.6125,1761.9,1761.7,4.6804]
[1745364553501,1.1349,1761.7,1761.6,3.20780394]
[1745364553708,4.6125,1761.9,1761.6,3.20780394]
[1745364553914,1.13484,1761.8,1761.6,3.20780394]
[1745364554215,5.38,1762.0,1761.8,1.13483]
[1745364554515,0.00852394,1762.3,1761.6,3.20780394]
[1745364554516,0.00852394,1762.3,1762.0,1.1347]
[1745364554811,1.13415,1762.9,1762.1,10.72481]
[1745364555009,5.91,1763.5,1762.8,3.2078]
[1745364555010,4.8248,1763.5,1762.8,3.2078]
[1745364555207,5.68471,1763.3,1763.1,3.2078]
[1745364555410,1.13403,1763.1,1762.9,7.8882]
[1745364555713,1.13397,1763.2,1762.9,7.8882]
[1745364555916,4.5508,1763.3,1762.9,7.8882]
[1745364556114,1.13402,1763.1,1762.9,7.89672394]
[1745364556709,1.13406,1763.0,1762.9,3.21632394]
[1745364556909,1.13419,1762.8,1762.7,3.2078]
[1745364557111,1.13438,1762.5,1762.4,3.2078]
[1745364557302,2.83652,1762.2,1761.5,3.2078]
[1745364557507,5.38,1762.1,1761.3,3.2078]
[1745364557711,1.13486,1761.8,1761.5,4.3428]
[1745364557910,1.13486,1761.8,1761.6,4.8522]
[1745364558111,0.00852394,1761.8,1761.6,4.8522]
[1745364558303,0.00852394,1761.8,1761.6,5.98713]
[1745364558510,0.00852394,1761.8,1761.7,8.06]
[1745364558706,0.00852394,1761.8,1761.5,3.21632394]
[1745364558914,0.00852394,1761.8,1761.6,1.13493]
[1745364559211,0.00852394,1761.8,1761.7,4.8522]
[1745364559416,0.00852394,1761.8,1761.7,5.9871]
[1745364559616,0.00852394,1761.8,1761.7,4.8522]
[1745364559811,1.14335394,1761.8,1761.7,4.8522]
[1745364560214,1.13496,1761.6,1761.5,3.21632394]
[1745364560813,1.13493,1761.7,1761.5,3.21632394]
[1745364561109,0.00852394,1761.8,1761.7,1.1349]
[1745364561311,0.00852394,1761.8,1761.7,4.3427]
[1745364561811,6.14335394,1761.8,1761.7,3.2078]
[1745364562010,1.13496,1761.6,1761.5,0.00852394]
[1745364562814,10.73006,1761.6,1761.5,0.00852394]
[1745364563016,16.33906,1761.6,1761.5,0.00852394]
[1745364563313,22.24906,1761.6,1761.5,3.94e-06]
[1745364564010,17.24906,1761.6,1761.5,0.75831561]
[1745364564316,17.24906,1761.6,1760.7,1.13552]
[1745364564317,2.83758,1761.5,1760.7,1.13552]
[1745364564514,2.83758,1761.5,1760.8,4.6822]
[1745364564515,16.21423471,1761.4,1760.8,4.6822]
[1745364564715,5.91,1761.4,1761.0,1.13534]
[1745364564913,5.91,1761.4,1761.1,4.6822]
[1745364565119,1.13522,1761.2,1761.1,4.6822]
[1745364565316,1.13525,1761.2,1760.8,3.2078]
[1745364565511,1.13522,1761.2,1761.0,0.00852394]
[1745364565708,1.13529,1761.1,1761.0,0.00852394]
[1745364565913,1.13525,1761.2,1761.0,4.50952394]
[1745364566214,1.13529,1761.1,1761.0,10.83152394]
[1745364566526,4.8469,1761.4,1761.0,10.83152394]
[1745364566907,1.1351,1761.4,1761.1,3.2078]
[1745364567219,3.2078,1761.5,1761.2,4.501]
[1745364567412,1.13516,1761.3,1761.2,4.501]
[1745364568215,3.2078,1761.5,1761.2,10.823]
[1745364568419,1.13514,1761.4,1761.2,10.823]
[1745364568612,3.2078,1761.5,1761.2,10.823]
[1745364568613,1.13516,1761.3,1761.2,11.95817]
[1745364568814,1.13516,1761.3,1761.2,10.823]
[1745364569120,7.9564,1761.5,1761.0,0.00852394]
[1745364569419,1.13529,1761.1,1761.0,0.00852394]
[1745364569817,6.13529,1761.1,1761.0,0.00852394]
[1745364570016,6.13529,1761.1,1761.0,3.94e-06]
[1745364570215,23.45999,1761.1,1761.0,3.94e-06]
[1745364570415,23.55915269,1761.1,1761.0,3.94e-06]
[1745364570723,23.45999,1761.1,1761.0,3.94e-06]
[1745364570916,18.45999,1761.1,1761.0,3.94e-06]
[1745364571325,9.09169,1761.1,1761.0,3.94e-06]
[1745364574115,20.10085681,1761.1,1761.0,3.94e-06]
[1745364574916,1.13529,1761.1,1761.0,3.94e-06]
[1745364575220,4.5739,1761.4,1761.1,1.13527]
[1745364575415,4.5739,1761.4,1761.2,4.811]
[1745364575416,1.13516,1761.3,1761.2,4.811]
[1745364575613,1.13529,1761.1,1761.0,3.94e-06]
[1745364576216,1.13529,1761.1,1761.0,7.07102799]
[1745364576524,1.13529,1761.1,1761.0,11.88202799]
[1745364576821,1.13529,1761.1,1761.0,7.07102799]
[1745364577526,1.13529,1761.1,1761.0,11.88202799]
[1745364577820,4.6099,1761.2,1761.0,11.88202799]
[1745364578021,1.13522,1761.2,1761.1,0.74902405]
[1745364579521,1.13529,1761.1,1761.0,4.81100394]
[1745364579722,1.13529,1761.1,1761.0,5.56059595]
[1745364580222,1.13529,1761.1,1761.0,11.88259595]
[1745364581220,10.2219,1761.4,1761.0,5.56059595]
[1745364581416,1.13522,1761.2,1761.1,0.74959201]
[1745364581828,9.34302,1761.2,1761.1,0.74959201]
[1745364582022,9.44218306,1761.2,1761.1,0.74959201]
[1745364582230,4.44218306,1761.2,1761.1,0.74959201]
[1745364582729,1.13522,1761.2,1761.1,0.74959201]
[1745364584725,4.34302,1761.2,1761.1,2.01e-06]
[1745364585028,6.23437518,1761.2,1761.1,2.01e-06]
[1745364585424,1.13529,1761.1,1761.0,3.94e-06]
[1745364585620,21.07164518,1761.1,1761.0,3.94e-06]
[1745364585817,26.07164518,1761.1,1761.0,3.94e-06]
[1745364586230,32.39364518,1761.1,1761.0,3.94e-06]
[1745364586429,32.39365969,1761.1,1761.0,3.94e-06]
[1745364589533,32.39367085,1761.1,1761.0,3.94e-06]
[1745364589930,38.08567085,1761.1,1761.0,3.94e-06]
[1745364590122,1.13587,1760.2,1760.1,3.2078]
[1745364591031,1.13559,1760.7,1760.1,8.2078]
[1745364591229,2.83854,1760.9,1760.5,3.2078]
[1745364591535,1.14413394,1760.6,1760.5,4.34347]
[1745364591735,1.14413394,1760.6,1760.5,3.2078]
[1745364592037,1.14413394,1760.6,1760.5,8.2078]
[1745364592228,1.14413394,1760.6,1760.5,15.66547]
[1745364592428,1.14413394,1760.6,1760.5,14.5298]
[1745364592935,1.14413394,1760.6,1760.5,9.5298]
[1745364593131,1.13574,1760.4,1760.3,3.2078]
[1745364593528,1.13574,1760.4,1760.3,8.2078]
[1745364593931,1.13574,1760.4,1760.3,3.2078]
[1745364594137,1.13574,1760.4,1760.3,9.5298]
[1745364594732,0.00852394,1760.6,1760.3,20.3518]
[1745364594932,2.83826,1761.1,1760.5,3.2078]
[1745364595234,2.83804,1761.3,1760.7,3.2078]
[1745364595537,1.13535,1761.0,1760.9,3.2078]
[1745364595737,1.13535,1761.0,1760.9,8.2078]
[1745364596240,0.00852394,1761.1,1761.0,1.13535]
[1745364596630,0.00852394,1761.1,1761.0,10.67715]
[1745364596831,1.14381394,1761.1,1761.0,11.41995725]
[1745364597131,1.14381394,1761.1,1761.0,17.74195725]
[1745364597336,1.14381394,1761.1,1761.0,7.06480725]
[1745364598337,1.13612,1759.8,1759.6,14.5393736]
[1745364598639,1.13612,1759.8,1759.7,1.44143696]
[1745364598831,1.13612,1759.8,1759.4,15.05482681]
[1745364598832,10.6808,1759.8,1759.4,15.05482681]
[1745364599027,4.34412,1759.5,1759.4,12.88972287]
[1745364599231,4.34412,1759.5,1759.4,9.21575287]
[1745364599433,4.34412,1759.5,1759.4,6.09843287]
[1745364599640,9.34412,1759.5,1759.4,6.09843287]
[1745364599843,4.34412,1759.5,1759.4,6.09843287]
[1745364600039,4.34412,1759.5,1759.4,4.94131287]
[1745364600333,4.34412,1759.5,1759.4,0.90489287]
[1745364600334,14.26742,1759.5,1759.4,0.90489287]
[1745364600541,9.26742,1759.5,1759.4,2.87e-06]
[1745364600842,1.13638,1759.4,1759.3,6.81e-06]
[1745364601533,6.05968,1759.4,1759.3,6.81e-06]
[1745364602344,1.13638,1759.4,1759.3,6.81e-06]
[1745364602938,5.74038,1759.4,1759.3,6.81e-06]
[1745364604148,1.13638,1759.4,1759.3,6.81e-06]
[1745364606345,5.91852394,1759.6,1759.3,5.00000681]
[1745364606543,1.13632,1759.5,1759.4,4.4778]
[1745364607243,0.00852394,1759.6,1759.4,15.7998]
[1745364607444,2.83984,1760.1,1759.5,3.2078]
[1745364607445,1.13598,1760.1,1759.5,3.2078]
[1745364607743,3.2078,1760.1,1759.7,4.34396]
[1745364608044,1.13597,1760.1,1759.8,4.5847]
[1745364608247,1.13594,1760.1,1759.9,1.13604]
[1745364608442,1.13594,1760.1,1760.0,4.5847]
[1745364608754,2.84002,1760.0,1759.5,6.322]
[1745364608947,1.13625,1759.6,1759.5,6.322]
[1745364609145,1.13632,1759.5,1759.4,4.5847]
[1745364609449,4.34412,1759.5,1759.4,4.5847]
[1745364610135,4.34412,1759.5,1759.3,6.81e-06]
[1745364610340,1.13638,1759.4,1759.3,6.81e-06]
[1745364610542,5.66948,1759.4,1759.3,6.81e-06]
[1745364611240,3.2078,1759.5,1759.3,6.81e-06]
[1745364611443,3.2078,1759.9,1759.4,1.13638]
[1745364611648,1.13622,1759.7,1759.5,5.99939]
[1745364611850,5.648,1760.0,1759.7,1.13617]
[1745364612142,5.648,1760.0,1759.8,4.8631]
[1745364612647,6.78402,1760.0,1759.8,5.9992]
[1745364612844,5.648,1760.0,1759.9,1.13606]
[1745364613055,6.78399,1760.0,1759.9,4.8631]
[1745364613546,3.2078,1760.1,1760.0,1.13599]
[1745364613851,0.00852394,1760.2,1760.1,1.13593]
[1745364614051,1.13571,1760.5,1760.3,1.13577]
[1745364614446,1.13571,1760.5,1760.4,4.8177]
[1745364614952,1.13557,1760.7,1760.5,1.13564]
[1745364615154,1.13557,1760.7,1760.6,4.8177]
[1745364616046,4.34337,1760.7,1760.6,4.8177]
[1745364617942,4.34334,1760.7,1760.6,4.8177]
[1745364618351,3.2078,1760.7,1760.6,5.95331]
[1745364618549,3.2078,1760.7,1760.6,4.8177]
[1745364619144,0.00852394,1760.8,1760.7,1.13554]
[1745364619652,0.00852394,1760.8,1760.7,6.13554]
[1745364619851,0.00852394,1760.8,1760.7,11.04044]
[1745364620253,0.00852394,1760.8,1760.7,17.36244]
[1745364621651,1.14400394,1760.8,1760.7,11.2269]
[1745364622155,1.14400394,1760.8,1760.7,4.9049]
[1745364622351,5.77950394,1760.8,1760.7,4.9049]
[1745364622861,5.77950394,1760.8,1760.3,6.33052394]
[1745364622862,1.13574,1760.4,1760.3,6.33052394]
[1745364623156,1.13599,1760.0,1759.9,4.5767]
[1745364623353,12.7566,1760.3,1759.9,5.71274]
[1745364623551,1.13598,1760.1,1759.9,5.71274]
[1745364623953,1.13599,1760.0,1759.9,4.5767]
[1745364624154,1.13599,1760.0,1759.9,10.8987]
[1745364624361,1.13592,1760.2,1760.0,1.13599]
[1745364624554,1.13592,1760.2,1760.1,4.931]
[1745364624755,3.2078,1760.3,1760.2,1.13585]
[1745364624957,6.78278,1760.4,1760.2,1.13587]
[1745364625154,1.13578,1760.4,1760.3,4.931]
[1745364625356,1.1358,1760.3,1760.2,6.322]
[1745364625663,9.2855,1760.3,1760.2,6.322]
[1745364626462,4.3436,1760.3,1760.2,6.322]
[1745364627360,14.9906,1760.3,1760.2,5.00388]
[1745364627557,15.08980763,1760.3,1760.2,1.58312]
[1745364627954,20.05240763,1760.3,1760.2,1.58312]
[1745364628156,20.05240763,1760.3,1759.8,0.00852394]
[1745364628157,1.13606,1759.9,1759.8,0.00852394]
[1745364628362,4.34386,1759.9,1759.8,0.00852394]
[1745364628662,5.647,1760.2,1759.8,0.00852394]
[1745364628960,1.13593,1760.1,1759.9,1.13605]
[1745364629160,1.13593,1760.1,1760.0,4.8182]
[1745364629361,4.34373,1760.1,1760.0,4.8182]
[1745364629866,3.2078,1760.3,1760.0,9.8182]
[1745364630060,3.2078,1760.3,1760.2,1.13587]
[1745364630571,3.2078,1760.3,1760.1,1.13589]
[1745364630868,4.8435,1760.5,1760.2,4.9724]
[1745364631058,1.13576,1760.4,1760.2,12.43023]
[1745364631370,5.9792,1760.5,1760.3,1.13577]
[1745364631578,1.1357,1760.5,1760.4,4.9724]
[1745364631776,5.9792,1760.5,1760.4,4.9724]
[1745364632272,4.8435,1760.5,1760.0,3.2078]
[1745364632486,1.13587,1760.2,1760.1,4.9206]
[1745364632673,1.13584,1760.3,1760.1,4.9206]
[1745364632869,4.34356,1760.4,1760.1,4.9206]
[1745364633067,4.8435,1760.5,1760.1,6.0565]
[1745364633277,1.13583,1760.3,1760.1,4.9206]
[1745364633581,1.13583,1760.3,1760.2,4.9206]
[1745364633775,1.13593,1760.1,1760.0,3.2078]
[1745364633972,1.13585,1760.3,1760.0,4.34378]
[1745364634173,1.13587,1760.2,1760.0,10.66578]
[1745364634574,1.13593,1760.1,1760.0,9.5298]
[1745364634777,1.13592,1760.2,1760.0,9.5298]
[1745364634980,5.647,1760.6,1760.0,9.5298]
[1745364634981,1.13584,1760.3,1760.1,1.13588]
[1745364635279,1.13584,1760.3,1760.2,1.13587]
[1745364635479,1.13578,1760.4,1760.1,4.9206]
[1745364635681,1.1358,1760.3,1760.2,1.13584]
[1745364635978,1.1357,1760.5,1760.1,7.76041]
[1745364636178,3.2078,1760.4,1760.2,11.2395]
[1745364636379,4.34357,1760.4,1760.2,11.2395]
[1745364636579,4.34357,1760.4,1760.2,12.37531]
[1745364636877,1.13572,1760.5,1760.3,1.1358]
[1745364637081,1.13572,1760.5,1760.4,4.9175]
[1745364637380,4.34352,1760.5,1760.4,4.9175]
[1745364637681,1.13572,1760.5,1760.4,4.9175]
[1745364637884,11.63084,1760.6,1760.4,6.0532]
[1745364638076,4.34347,1760.5,1760.4,6.0532]
[1745364638269,4.34347,1760.5,1760.4,11.2395]
[1745364638679,14.83866,1760.6,1760.4,12.3752]
[1745364638874,0.00852394,1760.8,1760.4,11.2395]
[1745364639074,0.00852394,1760.8,1760.6,1.13559]
[1745364639277,0.00852394,1760.8,1760.7,4.7527]
[1745364639479,1.14400394,1760.8,1760.7,4.7527]
[1745364639681,1.13567,1760.5,1760.4,6.322]
[1745364639881,4.34347,1760.5,1760.4,11.0747]
[1745364640582,4.34347,1760.5,1760.4,6.322]
[1745364641179,1.13574,1760.4,1760.3,5.822]
[1745364641379,1.1358,1760.3,1760.2,4.7527]
[1745364641684,4.6949,1760.4,1760.2,4.7527]
[1745364642083,5.83066,1760.4,1760.2,4.7527]
[1745364642385,5.83066,1760.4,1760.2,5.88854]
[1745364642686,4.6949,1760.4,1760.3,1.1358]
[1745364642883,3.2078,1760.5,1760.2,4.7527]
[1745364643092,3.2078,1760.5,1760.4,1.13574]
[1745364643385,4.34347,1760.5,1760.3,7.45775]
[1745364643683,4.34347,1760.5,1760.4,4.9651]
[1745364643990,4.34347,1760.5,1760.4,6.10084]
[1745364644282,2.84729394,1760.8,1760.7,1.13554]
[1745364644283,0.00852394,1760.8,1760.7,1.13554]
[1745364645087,1.14402394,1760.8,1760.6,5.95315]
[1745364645293,1.14402394,1760.8,1760.7,5.95314]
[1745364645480,0.00852394,1760.8,1760.7,5.95314]
[1745364646078,0.00852394,1760.8,1760.7,17.27514]
[1745364646285,3.2078,1761.8,1760.7,26.9312]
[1745364646485,1.13516,1761.3,1760.9,3.2078]
[1745364646690,3.2078,1761.4,1761.3,1.13511]
[1745364646890,1.13492,1761.7,1761.5,1.13498]
[1745364647094,4.7516,1761.8,1761.6,4.8176]
[1745364647282,1.1349,1761.7,1761.6,4.8176]
[1745364647888,4.35113394,1761.9,1761.6,4.8176]
[1745364648189,1.13486,1761.8,1761.6,4.8176]
[1745364648384,1.1349,1761.7,1761.6,4.8176]
[1745364648584,4.3427,1761.7,1761.6,5.59173337]
[1745364648795,3.21632394,1761.9,1761.6,5.59173337]
[1745364649087,0.00852394,1761.9,1761.7,0.77413337]
[1745364649296,0.00852394,1761.9,1761.8,11.54313337]
[1745364650286,1.14329394,1761.9,1761.8,11.54313337]
[1745364650792,6.10299394,1761.9,1761.8,11.54313337]
[1745364652790,6.10299394,1761.9,1761.8,0.77413337]
[1745364652989,1.14329394,1761.9,1761.8,0.77413337]
[1745364653188,0.00852394,1761.9,1761.8,0.77413337]
[1745364653384,3.2078,1762.4,1761.8,11.59613337]
[1745364653597,1.13471,1762.0,1761.9,10.05783337]
[1745364653892,1.13468,1762.1,1761.9,10.05783337]
[1745364654096,3.2078,1762.4,1762.0,0.77413337]
[1745364654290,1.1346,1762.2,1762.1,5.31703337]
[1745364654595,0.00852394,1762.3,1762.1,5.31703337]
[1745364654796,0.00852394,1762.3,1762.2,5.74103337]
[1745364655298,0.00852394,1762.3,1762.2,7.09613337]
[1745364655299,1.14303394,1762.3,1762.2,7.09613337]
[1745364655594,10.93323394,1762.3,1762.2,4.70114549]
[1745364655790,20.43483394,1762.3,1762.2,5.49e-06]
[1745364655995,20.43483394,1762.3,1761.5,0.00852394]
[1745364655996,1.13496,1761.6,1761.5,0.00852394]
[1745364656290,1.13496,1761.6,1761.5,3.94e-06]
[1745364656893,1.13496,1761.7,1761.5,3.94e-06]
[1745364657084,1.13496,1761.6,1761.5,3.94e-06]
[1745364659786,8.0886,1761.8,1761.5,1.13500394]
[1745364660101,3.2078,1762.2,1761.6,4.5515]
[1745364660297,1.13486,1761.8,1761.6,4.5515]
[1745364660596,10.56032,1762.2,1761.6,5.68646]
[1745364660597,7.7238,1762.2,1761.6,5.68646]
[1745364660790,1.1349,1761.7,1761.6,4.5515]
[1745364661391,1.13496,1761.6,1761.5,6.32200394]
[1745364662194,1.13496,1761.6,1761.5,3.94e-06]
[1745364662500,1.13531,1761.1,1760.7,5.822]
[1745364662702,3.2078,1761.1,1760.6,3.2078]
[1745364662999,1.13561,1760.6,1760.5,4.7862]
[1745364663196,1.1358,1760.3,1760.2,3.2078]
[1745364663389,4.6017,1760.5,1760.2,3.2078]
[1745364663594,1.1358,1760.3,1760.2,7.994]
[1745364663796,4.3436,1760.3,1760.2,4.79472394]
[1745364663991,1.1358,1760.3,1760.2,4.79472394]
[1745364664188,1.1358,1760.3,1760.2,0.00852394]
[1745364664403,6.1358,1760.3,1760.2,0.00852394]
[1745364664594,8.9453,1760.3,1760.2,0.00852394]
[1745364664795,4.6017,1760.3,1760.2,0.00852394]
[1745364664994,5.7375,1760.3,1760.2,4.79472394]
[1745364665499,5.7375,1760.3,1760.2,0.00852394]
[1745364666197,4.6017,1760.3,1760.2,0.00852394]
[1745364666403,8.04262394,1760.5,1760.2,4.87492394]
[1745364666696,1.1358,1760.3,1760.2,4.87492394]
[1745364666898,1.1358,1760.3,1760.2,0.00852394]
[1745364667097,20.9316,1760.3,1760.2,0.00852394]
[1745364667497,25.7579,1760.3,1760.2,0.7693641]
[1745364667791,25.7579,1760.3,1760.2,0.00852394]
[1745364668093,19.4359,1760.3,1760.2,0.76952316]
[1745364669203,19.4359,1760.3,1760.2,0.7691962]
[1745364669403,19.4359,1760.3,1760.2,0.00852394]
[1745364669604,24.35021196,1760.3,1760.2,3.94e-06]
[1745364669809,1.13628,1759.6,1759.3,5.69782]
[1745364670100,1.1363,1759.6,1759.4,5.49387977]
[1745364670402,1.1363,1759.6,1759.5,0.76067977]
[1745364672298,1.1363,1759.6,1759.5,5.41027977]
[1745364672900,1.1363,1759.6,1759.5,0.76067977]
[1745364673102,4.3441,1759.6,1759.5,0.76067977]
[1745364673303,1.13632,1759.5,1759.4,0.00852394]
[1745364673496,5.70272,1759.5,1759.4,0.76758943]
[1745364674005,4.5664,1759.5,1759.4,0.76758943]
[1745364674207,3.2078,1759.6,1759.4,1.90395943]
[1745364674504,3.2078,1759.6,1759.5,5.39644923]
[1745364674901,4.34405,1759.6,1759.5,5.3961335]
[1745364675099,8.89365,1759.6,1759.5,5.3961335]
[1745364676208,8.89365,1759.6,1759.5,11.7181335]
[1745364676401,8.89365,1759.6,1759.5,6.322]
[1745364678804,1.13632,1759.5,1759.4,0.00852394]
[1745364679013,1.1368,1758.8,1758.6,4.34468]
[1745364679307,1.13677,1758.8,1758.6,3.2078]
[1745364679497,4.34457,1758.8,1758.5,4.7083]
[1745364679704,1.1369,1758.6,1758.5,4.7083]
[1745364680007,5.94378,1758.7,1758.5,1.13693]
[1745364680205,4.8069,1758.7,1758.5,6.322]
[1745364680409,4.81542394,1758.7,1758.5,6.322]
[1745364680612,5.95230394,1758.7,1758.6,4.7083]
[1745364680807,1.1369,1758.6,1758.5,4.49996]
[1745364681107,9.2852,1758.6,1758.5,4.49996]
[1745364681502,14.2852,1758.6,1758.5,4.49996]
[1745364681709,14.38451452,1758.6,1758.5,1.3658]